[Event "Early-Titled-Tuesday-Blitz-September-12-2023"]
[Site "Chess.com"]
[Date "2023.09.12"]
[Round "7"]
[White "Forge13"]
[Black "Eloist"]
[Result "1-0"]
[WhiteElo "2629"]
[BlackElo "2480"]
[TimeControl "180+1"]
[EndTime "9:18:20 PDT"]
[Termination "Forge13 won on time"]

1. e4 {[%clk 0:03:00.9]} 1... e6 {[%clk 0:02:59.7]} 2. Qe2 {[%clk 0:03:00.3]}
2... c5 {[%clk 0:02:58.5]} 3. g3 {[%clk 0:02:59.3]} 3... Nc6 {[%clk 0:02:58.1]}
4. Bg2 {[%clk 0:03:00]} 4... g6 {[%clk 0:02:57.9]} 5. d3 {[%clk 0:02:57.9]} 5...
Bg7 {[%clk 0:02:56.5]} 6. h4 {[%clk 0:02:58.5]} 6... h5 {[%clk 0:02:54.3]} 7. c3
{[%clk 0:02:54.9]} 7... e5 {[%clk 0:02:51.4]} 8. a4 {[%clk 0:02:52]} 8... Nge7
{[%clk 0:02:48.7]} 9. Na3 {[%clk 0:02:51.5]} 9... O-O {[%clk 0:02:43.3]} 10. Nf3
{[%clk 0:02:49.5]} 10... d5 {[%clk 0:02:40.6]} 11. O-O {[%clk 0:02:46.8]} 11...
Bg4 {[%clk 0:02:37.7]} 12. Nc2 {[%clk 0:02:46.3]} 12... Qd7 {[%clk 0:02:25.5]}
13. Ne3 {[%clk 0:02:45.3]} 13... d4 {[%clk 0:01:16.6]} 14. Nxg4 {[%clk
0:02:36.4]} 14... hxg4 {[%clk 0:01:16.3]} 15. Nh2 {[%clk 0:02:37]} 15... f5
{[%clk 0:01:13.4]} 16. f3 {[%clk 0:02:25.3]} 16... gxf3 {[%clk 0:01:09.8]} 17.
Nxf3 {[%clk 0:02:16.5]} 17... Rad8 {[%clk 0:01:08.5]} 18. c4 {[%clk 0:02:15.5]}
18... fxe4 {[%clk 0:00:46.1]} 19. Qxe4 {[%clk 0:02:16.4]} 19... Qf5 {[%clk
0:00:38.8]} 20. Ng5 {[%clk 0:02:14.7]} 20... Qxe4 {[%clk 0:00:37]} 21. Bxe4
{[%clk 0:02:11.7]} 21... Rxf1+ {[%clk 0:00:35.3]} 22. Kxf1 {[%clk 0:02:12.6]}
22... Rf8+ {[%clk 0:00:34.2]} 23. Ke2 {[%clk 0:02:10.2]} 23... Nf5 {[%clk
0:00:27.3]} 24. Bxf5 {[%clk 0:01:52]} 24... gxf5 {[%clk 0:00:27]} 25. Ne6 {[%clk
0:01:51.4]} 25... Re8 {[%clk 0:00:24.1]} 26. Nxc5 {[%clk 0:01:40.7]} 26... b6
{[%clk 0:00:23.3]} 27. Nb3 {[%clk 0:01:41]} 27... e4 {[%clk 0:00:23.4]} 28. Bf4
{[%clk 0:01:25.2]} 28... Nb4 {[%clk 0:00:21.9]} 29. Nc1 {[%clk 0:01:11.5]} 29...
exd3+ {[%clk 0:00:15.8]} 30. Kd2 {[%clk 0:01:10.2]} 30... Be5 {[%clk 0:00:14]}
31. Nxd3 {[%clk 0:01:07.2]} 31... Bxf4+ {[%clk 0:00:13.5]} 32. Nxf4 {[%clk
0:01:05.5]} 32... Re3 {[%clk 0:00:13.2]} 33. Ne2 {[%clk 0:00:59.7]} 33... Nc6
{[%clk 0:00:11.9]} 34. Rf1 {[%clk 0:00:50.6]} 34... Rb3 {[%clk 0:00:06.7]} 35.
Kc2 {[%clk 0:00:22.9]} 35... Re3 {[%clk 0:00:06.5]} 36. Nc1 {[%clk 0:00:20.9]}
36... Nb4+ {[%clk 0:00:04.9]} 37. Kd2 {[%clk 0:00:20.8]} 37... Rxg3 {[%clk
0:00:03.9]} 38. Rf2 {[%clk 0:00:14.3]} 38... Kg7 {[%clk 0:00:02.7]} 39. Ne2
{[%clk 0:00:08.6]} 39... Rb3 {[%clk 0:00:01.2]} 40. Nxd4 {[%clk 0:00:06]} 1-0

[Event "Early-Titled-Tuesday-Blitz-September-12-2023"]
[Site "Chess.com"]
[Date "2023.09.12"]
[Round "7"]
[White "Ariadna_Atreides"]
[Black "Goi_Manne"]
[Result "1-0"]
[WhiteElo "2226"]
[BlackElo "2295"]
[TimeControl "180+1"]
[EndTime "9:18:21 PDT"]
[Termination "Ariadna_Atreides won by checkmate"]

1. d4 {[%clk 0:03:00.9]} 1... d5 {[%clk 0:02:59.9]} 2. Nf3 {[%clk 0:03:01]} 2...
Bf5 {[%clk 0:02:59.6]} 3. e3 {[%clk 0:02:59.9]} 3... e6 {[%clk 0:02:59.8]} 4.
Bd3 {[%clk 0:03:00.4]} 4... Bxd3 {[%clk 0:03:00.3]} 5. cxd3 {[%clk 0:03:00.3]}
5... Nf6 {[%clk 0:03:01.2]} 6. Nc3 {[%clk 0:03:00]} 6... c6 {[%clk 0:03:01.7]}
7. O-O {[%clk 0:02:59.4]} 7... Bd6 {[%clk 0:03:02.3]} 8. e4 {[%clk 0:02:59.3]}
8... dxe4 {[%clk 0:03:02.4]} 9. dxe4 {[%clk 0:02:59.2]} 9... Be7 {[%clk
0:03:02.7]} 10. Qe2 {[%clk 0:02:49.9]} 10... O-O {[%clk 0:03:03.2]} 11. Rd1
{[%clk 0:02:49.1]} 11... Nbd7 {[%clk 0:03:03.6]} 12. h3 {[%clk 0:02:48.6]} 12...
Qc7 {[%clk 0:03:01.4]} 13. Bg5 {[%clk 0:02:45.5]} 13... h6 {[%clk 0:02:59.3]}
14. Bh4 {[%clk 0:02:45.4]} 14... Rfd8 {[%clk 0:02:56.3]} 15. e5 {[%clk
0:02:40.8]} 15... Nxe5 {[%clk 0:02:29.2]} 16. dxe5 {[%clk 0:02:35.6]} 16... Nd5
{[%clk 0:02:27.2]} 17. Nxd5 {[%clk 0:02:30.2]} 17... cxd5 {[%clk 0:02:28.1]} 18.
Rac1 {[%clk 0:02:27.8]} 18... Qd7 {[%clk 0:02:28.3]} 19. Bxe7 {[%clk 0:02:25.3]}
19... Qxe7 {[%clk 0:02:29.2]} 20. Nd4 {[%clk 0:02:23]} 20... Rac8 {[%clk
0:02:28.8]} 21. Qd2 {[%clk 0:02:14.8]} 21... g5 {[%clk 0:02:27.8]} 22. h4 {[%clk
0:02:09.2]} 22... Kg7 {[%clk 0:02:27.1]} 23. hxg5 {[%clk 0:01:59.4]} 23... hxg5
{[%clk 0:02:28]} 24. Nf3 {[%clk 0:01:58.1]} 24... g4 {[%clk 0:02:22]} 25. Qg5+
{[%clk 0:01:41.9]} 25... Qxg5 {[%clk 0:02:21.7]} 26. Nxg5 {[%clk 0:01:42.6]}
26... Rxc1 {[%clk 0:02:21.5]} 27. Rxc1 {[%clk 0:01:42]} 27... Kg6 {[%clk
0:02:22.1]} 28. f4 {[%clk 0:01:41.8]} 28... gxf3 {[%clk 0:02:16.3]} 29. Nxf3
{[%clk 0:01:40.6]} 29... Kf5 {[%clk 0:02:17]} 30. Rc7 {[%clk 0:01:30]} 30... d4
{[%clk 0:02:15.6]} 31. Rxf7+ {[%clk 0:01:23.4]} 31... Ke4 {[%clk 0:02:15.4]} 32.
Kf2 {[%clk 0:01:15.3]} 32... d3 {[%clk 0:02:11.2]} 33. Nd2+ {[%clk 0:01:08.5]}
33... Kxe5 {[%clk 0:02:11.6]} 34. Rxb7 {[%clk 0:01:08]} 34... a6 {[%clk
0:02:08.5]} 35. Ke3 {[%clk 0:01:04.5]} 35... Rg8 {[%clk 0:02:08]} 36. Nf3+
{[%clk 0:00:38.7]} 36... Kd5 {[%clk 0:02:08]} 37. Rd7+ {[%clk 0:00:18.4]} 37...
Kc5 {[%clk 0:02:03.9]} 38. Ne1 {[%clk 0:00:16.8]} 38... Rb8 {[%clk 0:02:00.3]}
39. b3 {[%clk 0:00:16.4]} 39... d2 {[%clk 0:02:00.6]} 40. Rxd2 {[%clk
0:00:15.9]} 40... Rg8 {[%clk 0:02:00.2]} 41. Rc2+ {[%clk 0:00:15.8]} 41... Kb4
{[%clk 0:02:00.7]} 42. Nd3+ {[%clk 0:00:15.2]} 42... Ka3 {[%clk 0:02:01]} 43.
Rc6 {[%clk 0:00:14.6]} 43... Kxa2 {[%clk 0:02:01.3]} 44. b4 {[%clk 0:00:08.9]}
44... Rxg2 {[%clk 0:02:00.6]} 45. Rxa6+ {[%clk 0:00:08.7]} 45... Kb3 {[%clk
0:01:59.9]} 46. Rxe6 {[%clk 0:00:08.3]} 46... Rg3+ {[%clk 0:01:59.1]} 47. Kd4
{[%clk 0:00:07.7]} 47... Rg4+ {[%clk 0:01:59.1]} 48. Re4 {[%clk 0:00:06.6]}
48... Rg5 {[%clk 0:01:56.1]} 49. Re5 {[%clk 0:00:05.3]} 49... Rg4+ {[%clk
0:01:56.4]} 50. Kc5 {[%clk 0:00:04.8]} 50... Rg3 {[%clk 0:01:55.7]} 51. Nf4
{[%clk 0:00:04.3]} 51... Rc3+ {[%clk 0:01:54.1]} 52. Kb5 {[%clk 0:00:03.8]}
52... Rf3 {[%clk 0:01:53.3]} 53. Nd5 {[%clk 0:00:03.6]} 53... Rh3 {[%clk
0:01:51]} 54. Kc5 {[%clk 0:00:03.7]} 54... Rh8 {[%clk 0:01:48.9]} 55. b5 {[%clk
0:00:04]} 55... Ka4 {[%clk 0:01:49.1]} 56. b6 {[%clk 0:00:03.8]} 56... Ka5
{[%clk 0:01:49.6]} 57. Re3 {[%clk 0:00:03.1]} 57... Rc8+ {[%clk 0:01:50]} 58.
Kd4 {[%clk 0:00:02.9]} 58... Ka6 {[%clk 0:01:48.4]} 59. Ra3+ {[%clk 0:00:02.5]}
59... Kb7 {[%clk 0:01:47.5]} 60. Ra7+ {[%clk 0:00:02.4]} 60... Kb8 {[%clk
0:01:48.2]} 61. Rc7 {[%clk 0:00:02.3]} 61... Rd8 {[%clk 0:01:47.9]} 62. Kc5
{[%clk 0:00:02.2]} 62... Rh8 {[%clk 0:01:46.2]} 63. Rd7 {[%clk 0:00:01.6]} 63...
Rh6 {[%clk 0:01:43.9]} 64. Rd6 {[%clk 0:00:01.3]} 64... Rh1 {[%clk 0:01:41]} 65.
Kc6 {[%clk 0:00:01.6]} 65... Rc1+ {[%clk 0:01:40.6]} 66. Kb5 {[%clk 0:00:02.1]}
66... Rb1+ {[%clk 0:01:40.6]} 67. Nb4 {[%clk 0:00:02.7]} 67... Rc1 {[%clk
0:01:39.7]} 68. Rd7 {[%clk 0:00:02.9]} 68... Rb1 {[%clk 0:01:35.4]} 69. Ka5
{[%clk 0:00:02.6]} 69... Ra1+ {[%clk 0:01:34.6]} 70. Kb5 {[%clk 0:00:03]} 70...
Rb1 {[%clk 0:01:35.4]} 71. Rd4 {[%clk 0:00:03.1]} 71... Kb7 {[%clk 0:01:33]} 72.
Rh4 {[%clk 0:00:03.7]} 72... Kb8 {[%clk 0:01:33]} 73. Rh8+ {[%clk 0:00:03.1]}
73... Kb7 {[%clk 0:01:32.9]} 74. Rh7+ {[%clk 0:00:03.4]} 74... Kb8 {[%clk
0:01:33.2]} 75. Rf7 {[%clk 0:00:03.1]} 75... Rc1 {[%clk 0:01:30.4]} 76. Nc6+
{[%clk 0:00:01.5]} 76... Kc8 {[%clk 0:01:27.4]} 77. b7# {[%clk 0:00:01.7]} 1-0

[Event "Early-Titled-Tuesday-Blitz-September-12-2023"]
[Site "Chess.com"]
[Date "2023.09.12"]
[Round "7"]
[White "VOneChess"]
[Black "Pumpkin_in_moonlight"]
[Result "1-0"]
[WhiteElo "2230"]
[BlackElo "2249"]
[TimeControl "180+1"]
[EndTime "9:18:23 PDT"]
[Termination "VOneChess won on time"]

1. e4 {[%clk 0:02:53.7]} 1... e5 {[%clk 0:02:59.7]} 2. Nf3 {[%clk 0:02:53.5]}
2... Nc6 {[%clk 0:02:58.6]} 3. Bb5 {[%clk 0:02:54]} 3... a6 {[%clk 0:02:55.7]}
4. Ba4 {[%clk 0:02:53.6]} 4... Nf6 {[%clk 0:02:55.6]} 5. O-O {[%clk 0:02:54.2]}
5... Be7 {[%clk 0:02:54.6]} 6. Re1 {[%clk 0:02:54.2]} 6... b5 {[%clk 0:02:54.3]}
7. Bb3 {[%clk 0:02:54.7]} 7... d6 {[%clk 0:02:54.1]} 8. c3 {[%clk 0:02:54.5]}
8... O-O {[%clk 0:02:51.2]} 9. h3 {[%clk 0:02:54.8]} 9... Nb8 {[%clk 0:02:45.9]}
10. d4 {[%clk 0:02:54.5]} 10... Nbd7 {[%clk 0:02:45.7]} 11. Nbd2 {[%clk
0:02:53.9]} 11... Re8 {[%clk 0:02:43]} 12. Bxf7+ {[%clk 0:02:53.3]} 12... Kh8
{[%clk 0:02:20.9]} 13. Ng5 {[%clk 0:02:49.4]} 13... Bf8 {[%clk 0:02:04.2]} 14.
Bxe8 {[%clk 0:02:41.5]} 14... Qxe8 {[%clk 0:02:02.6]} 15. Qb3 {[%clk 0:02:40.7]}
15... h6 {[%clk 0:01:51]} 16. Ngf3 {[%clk 0:02:15.2]} 16... Bb7 {[%clk
0:01:47.6]} 17. d5 {[%clk 0:02:09.4]} 17... c6 {[%clk 0:01:32.6]} 18. dxc6
{[%clk 0:01:52.1]} 18... Bxc6 {[%clk 0:01:32.8]} 19. Qc2 {[%clk 0:01:02.8]}
19... Nc5 {[%clk 0:01:31.5]} 20. b4 {[%clk 0:00:59.8]} 20... Ne6 {[%clk
0:01:30]} 21. Nf1 {[%clk 0:00:57.4]} 21... Qg6 {[%clk 0:01:09]} 22. Ng3 {[%clk
0:00:55.4]} 22... h5 {[%clk 0:00:41.9]} 23. Nh4 {[%clk 0:00:46.7]} 23... Qh7
{[%clk 0:00:39.4]} 24. Ngf5 {[%clk 0:00:19.6]} 24... g5 {[%clk 0:00:24.3]} 25.
Nf3 {[%clk 0:00:18.4]} 25... Nxe4 {[%clk 0:00:22]} 26. Ne3 {[%clk 0:00:03.8]}
26... Bg7 {[%clk 0:00:20.9]} 27. Bd2 {[%clk 0:00:03.1]} 27... d5 {[%clk
0:00:18.7]} 28. Rad1 {[%clk 0:00:03]} 28... Rd8 {[%clk 0:00:17.8]} 29. Bc1
{[%clk 0:00:03]} 29... Nf4 {[%clk 0:00:16.9]} 30. Nh2 {[%clk 0:00:02]} 30... Qg8
{[%clk 0:00:10.7]} 31. a4 {[%clk 0:00:02.6]} 31... Bf6 {[%clk 0:00:08.4]} 32. c4
{[%clk 0:00:03]} 32... bxc4 {[%clk 0:00:07.7]} 33. b5 {[%clk 0:00:03.3]} 33...
axb5 {[%clk 0:00:07.6]} 34. axb5 {[%clk 0:00:04.2]} 34... Bxb5 {[%clk
0:00:03.9]} 35. Nxd5 {[%clk 0:00:04.5]} 35... Nxd5 {[%clk 0:00:02.7]} 36. Qxe4
{[%clk 0:00:04.6]} 1-0

[Event "Early-Titled-Tuesday-Blitz-September-12-2023"]
[Site "Chess.com"]
[Date "2023.09.12"]
[Round "7"]
[White "the-gambler"]
[Black "FredddieCroderg"]
[Result "0-1"]
[WhiteElo "2509"]
[BlackElo "2320"]
[TimeControl "180+1"]
[EndTime "9:18:24 PDT"]
[Termination "FredddieCroderg won by checkmate"]

1. e4 {[%clk 0:03:00.9]} 1... c5 {[%clk 0:02:59.8]} 2. Nc3 {[%clk 0:02:59]} 2...
Nc6 {[%clk 0:02:59.2]} 3. Nge2 {[%clk 0:02:59.2]} 3... g6 {[%clk 0:02:59.4]} 4.
g3 {[%clk 0:02:59.5]} 4... Bg7 {[%clk 0:02:59.5]} 5. Bg2 {[%clk 0:02:59.8]} 5...
e6 {[%clk 0:02:52.7]} 6. O-O {[%clk 0:02:59.4]} 6... Nge7 {[%clk 0:02:52.3]} 7.
d3 {[%clk 0:02:59.3]} 7... d6 {[%clk 0:02:48.9]} 8. h3 {[%clk 0:02:52.5]} 8...
Rb8 {[%clk 0:02:47.9]} 9. a4 {[%clk 0:02:50.8]} 9... a6 {[%clk 0:02:47.7]} 10.
g4 {[%clk 0:02:49.7]} 10... b5 {[%clk 0:02:45.4]} 11. Ng3 {[%clk 0:02:48.7]}
11... b4 {[%clk 0:02:41.8]} 12. Nce2 {[%clk 0:02:47.5]} 12... h5 {[%clk
0:02:23.1]} 13. gxh5 {[%clk 0:02:43.8]} 13... gxh5 {[%clk 0:02:24]} 14. Nf4
{[%clk 0:02:36.7]} 14... h4 {[%clk 0:02:22.2]} 15. Ngh5 {[%clk 0:02:36.6]} 15...
Be5 {[%clk 0:02:21.3]} 16. Kh1 {[%clk 0:02:32.8]} 16... Ng6 {[%clk 0:02:16.4]}
17. Bf3 {[%clk 0:02:29.1]} 17... Nd4 {[%clk 0:02:09.9]} 18. Rg1 {[%clk
0:02:26.3]} 18... Nxf4 {[%clk 0:01:56.5]} 19. Nxf4 {[%clk 0:02:08]} 19... Qf6
{[%clk 0:00:53.8]} 20. Rg4 {[%clk 0:02:06.7]} 20... Ke7 {[%clk 0:00:43.2]} 21.
Nd5+ {[%clk 0:01:59.3]} 21... exd5 {[%clk 0:00:41.3]} 22. Bg5 {[%clk 0:01:58.8]}
22... Bxg4 {[%clk 0:00:34.2]} 23. Bxf6+ {[%clk 0:01:58.8]} 23... Bxf6 {[%clk
0:00:34.5]} 24. Bxg4 {[%clk 0:01:59]} 24... dxe4 {[%clk 0:00:34.2]} 25. dxe4
{[%clk 0:01:58.8]} 25... Be5 {[%clk 0:00:30.6]} 26. c3 {[%clk 0:01:57.5]} 26...
bxc3 {[%clk 0:00:30.1]} 27. bxc3 {[%clk 0:01:57.2]} 27... Ne6 {[%clk 0:00:30.8]}
28. Rb1 {[%clk 0:01:54.4]} 28... Nf4 {[%clk 0:00:28.6]} 29. Qc2 {[%clk
0:01:44.9]} 29... Kf6 {[%clk 0:00:25.1]} 30. Rd1 {[%clk 0:01:33.1]} 30... Rb6
{[%clk 0:00:22.4]} 31. a5 {[%clk 0:01:29.2]} 31... Rb5 {[%clk 0:00:22.2]} 32.
Bd7 {[%clk 0:01:22.8]} 32... Rxa5 {[%clk 0:00:20.6]} 33. Rb1 {[%clk 0:01:18]}
33... Ra3 {[%clk 0:00:18.3]} 34. Qd2 {[%clk 0:01:10.1]} 34... Rxc3 {[%clk
0:00:16.3]} 35. Bc6 {[%clk 0:01:07.9]} 35... Rxh3+ {[%clk 0:00:15.3]} 36. Kg1
{[%clk 0:01:06.1]} 36... Rd3 {[%clk 0:00:16.2]} 37. Qc2 {[%clk 0:00:50.5]} 37...
h3 {[%clk 0:00:13.8]} 38. f3 {[%clk 0:00:48.5]} 38... Rg8+ {[%clk 0:00:13.3]}
39. Kh1 {[%clk 0:00:48.2]} 39... Rg2 {[%clk 0:00:13.6]} 40. Qc1 {[%clk
0:00:44.6]} 40... Rdd2 {[%clk 0:00:13.2]} 41. Qg1 {[%clk 0:00:34.1]} 41... Rxg1+
{[%clk 0:00:10.9]} 42. Rxg1 {[%clk 0:00:33.9]} 42... h2 {[%clk 0:00:06.7]} 43.
Rf1 {[%clk 0:00:30.6]} 43... Nh5 {[%clk 0:00:05.5]} 44. Rg1 {[%clk 0:00:29.2]}
44... hxg1=Q+ {[%clk 0:00:04.5]} 45. Kxg1 {[%clk 0:00:28.4]} 45... Nf4 {[%clk
0:00:05.2]} 46. Kf1 {[%clk 0:00:28.1]} 46... a5 {[%clk 0:00:06.1]} 47. Bb5
{[%clk 0:00:27.4]} 47... Rb2 {[%clk 0:00:07]} 48. Bc4 {[%clk 0:00:27.5]} 48...
Ke7 {[%clk 0:00:07.6]} 49. Ke1 {[%clk 0:00:25.2]} 49... f6 {[%clk 0:00:08.5]}
50. Kd1 {[%clk 0:00:25.2]} 50... a4 {[%clk 0:00:09.2]} 51. Kc1 {[%clk
0:00:25.9]} 51... a3 {[%clk 0:00:10.1]} 52. Bg8 {[%clk 0:00:24.5]} 52... Kd8
{[%clk 0:00:11]} 53. Bf7 {[%clk 0:00:23.4]} 53... Kc7 {[%clk 0:00:11.9]} 54. Bg8
{[%clk 0:00:23.6]} 54... Kb6 {[%clk 0:00:12.8]} 55. Bf7 {[%clk 0:00:24]} 55...
Ka5 {[%clk 0:00:13.7]} 56. Bg8 {[%clk 0:00:24.6]} 56... Kb4 {[%clk 0:00:14.6]}
57. Bf7 {[%clk 0:00:24.7]} 57... Kc3 {[%clk 0:00:15.5]} 58. Bg8 {[%clk
0:00:24.4]} 58... Nd3+ {[%clk 0:00:16.4]} 59. Kd1 {[%clk 0:00:23.6]} 59... Rd2#
{[%clk 0:00:17.3]} 0-1

[Event "Early-Titled-Tuesday-Blitz-September-12-2023"]
[Site "Chess.com"]
[Date "2023.09.12"]
[Round "7"]
[White "GamayevOleg"]
[Black "NotFischer"]
[Result "1/2-1/2"]
[WhiteElo "2461"]
[BlackElo "2293"]
[TimeControl "180+1"]
[EndTime "9:18:29 PDT"]
[Termination "Game drawn by repetition"]

1. d4 {[%clk 0:02:56]} 1... Nf6 {[%clk 0:02:59.6]} 2. Bf4 {[%clk 0:02:54.7]}
2... d5 {[%clk 0:02:59.1]} 3. e3 {[%clk 0:02:54.9]} 3... c5 {[%clk 0:02:59.1]}
4. c3 {[%clk 0:02:52.6]} 4... Nc6 {[%clk 0:02:58.7]} 5. Nd2 {[%clk 0:02:49.5]}
5... g6 {[%clk 0:02:55.9]} 6. Ngf3 {[%clk 0:02:47.6]} 6... Bg4 {[%clk
0:02:55.4]} 7. Bd3 {[%clk 0:02:46]} 7... cxd4 {[%clk 0:02:55.1]} 8. exd4 {[%clk
0:02:45.4]} 8... Bg7 {[%clk 0:02:55.2]} 9. h3 {[%clk 0:02:43]} 9... Bf5 {[%clk
0:02:53.7]} 10. Bxf5 {[%clk 0:02:41]} 10... gxf5 {[%clk 0:02:54.6]} 11. Ne5
{[%clk 0:02:38.7]} 11... O-O {[%clk 0:02:49.3]} 12. O-O {[%clk 0:02:33.6]} 12...
e6 {[%clk 0:02:41.4]} 13. f3 {[%clk 0:02:30.8]} 13... Qb6 {[%clk 0:02:38.4]} 14.
Nxc6 {[%clk 0:02:17.5]} 14... bxc6 {[%clk 0:02:34.8]} 15. b4 {[%clk 0:02:16.5]}
15... a5 {[%clk 0:02:33.5]} 16. a3 {[%clk 0:02:16.7]} 16... axb4 {[%clk
0:02:32]} 17. axb4 {[%clk 0:02:17.6]} 17... Nh5 {[%clk 0:02:26.7]} 18. Be3
{[%clk 0:02:11.7]} 18... f4 {[%clk 0:02:26.6]} 19. Bf2 {[%clk 0:02:11.7]} 19...
Ng3 {[%clk 0:02:25.3]} 20. Re1 {[%clk 0:02:11]} 20... Qb5 {[%clk 0:02:04.9]} 21.
Nb3 {[%clk 0:02:08.9]} 21... Qc4 {[%clk 0:01:58.4]} 22. Qc2 {[%clk 0:02:00.7]}
22... Rxa1 {[%clk 0:01:54.6]} 23. Nxa1 {[%clk 0:02:00.3]} 23... Ra8 {[%clk
0:01:53.2]} 24. Nb3 {[%clk 0:01:50.6]} 24... Ra3 {[%clk 0:01:52.3]} 25. Bxg3
{[%clk 0:01:19.7]} 25... Rxb3 {[%clk 0:01:52.2]} 26. Bxf4 {[%clk 0:01:16.8]}
26... Rxc3 {[%clk 0:01:52.4]} 27. Qd2 {[%clk 0:01:08.4]} 27... Bxd4+ {[%clk
0:01:49.2]} 28. Kh1 {[%clk 0:01:05]} 28... Rc2 {[%clk 0:01:39]} 29. Qd1 {[%clk
0:01:02.3]} 29... Bf2 {[%clk 0:01:33.7]} 30. Rf1 {[%clk 0:00:53.3]} 30... e5
{[%clk 0:01:27.7]} 31. Bh6 {[%clk 0:00:49.1]} 31... Bg3 {[%clk 0:01:25.6]} 32.
Qa1 {[%clk 0:00:45.7]} 32... Ra2 {[%clk 0:01:11.2]} 33. Qb1 {[%clk 0:00:39.4]}
33... Qe2 {[%clk 0:01:03]} 34. Rg1 {[%clk 0:00:35.5]} 34... Bf4 {[%clk
0:00:45.6]} 35. Bxf4 {[%clk 0:00:29.1]} 35... exf4 {[%clk 0:00:45.4]} 36. Qf5
{[%clk 0:00:29.4]} 36... Qe6 {[%clk 0:00:28.2]} 37. Qg5+ {[%clk 0:00:25.9]}
37... Kf8 {[%clk 0:00:26.8]} 38. Qd8+ {[%clk 0:00:25]} 38... Kg7 {[%clk
0:00:26.8]} 39. Qg5+ {[%clk 0:00:24.9]} 39... Qg6 {[%clk 0:00:26.8]} 40. Qxf4
{[%clk 0:00:23.8]} 40... Re2 {[%clk 0:00:20.5]} 41. b5 {[%clk 0:00:20.1]} 41...
cxb5 {[%clk 0:00:19.3]} 42. Qd4+ {[%clk 0:00:20.1]} 42... Qf6 {[%clk 0:00:18.1]}
43. Qxd5 {[%clk 0:00:19.1]} 43... b4 {[%clk 0:00:17.4]} 44. Qd3 {[%clk
0:00:19.6]} 44... Qe6 {[%clk 0:00:15.6]} 45. Qb5 {[%clk 0:00:16.5]} 45... b3
{[%clk 0:00:14.8]} 46. Rb1 {[%clk 0:00:15.7]} 46... Re1+ {[%clk 0:00:13.4]} 47.
Rxe1 {[%clk 0:00:15.3]} 47... Qxe1+ {[%clk 0:00:14.2]} 48. Kh2 {[%clk 0:00:16]}
48... Qc3 {[%clk 0:00:13.9]} 49. Qg5+ {[%clk 0:00:15.4]} 49... Kf8 {[%clk
0:00:13.6]} 50. Qd8+ {[%clk 0:00:16]} 50... Kg7 {[%clk 0:00:13.2]} 51. Qg5+
{[%clk 0:00:16.9]} 51... Kf8 {[%clk 0:00:11.8]} 52. Qd8+ {[%clk 0:00:16.2]}
52... Kg7 {[%clk 0:00:11.8]} 53. Qg5+ {[%clk 0:00:16.7]} 1/2-1/2

[Event "Early-Titled-Tuesday-Blitz-September-12-2023"]
[Site "Chess.com"]
[Date "2023.09.12"]
[Round "7"]
[White "Grossboss19"]
[Black "Goryachkina"]
[Result "1/2-1/2"]
[WhiteElo "2545"]
[BlackElo "2664"]
[TimeControl "180+1"]
[EndTime "9:18:30 PDT"]
[Termination "Game drawn by agreement"]

1. d4 {[%clk 0:03:00.9]} 1... Nf6 {[%clk 0:02:59.2]} 2. c4 {[%clk 0:03:00.8]}
2... e6 {[%clk 0:02:59.4]} 3. Nc3 {[%clk 0:03:00.5]} 3... Bb4 {[%clk 0:02:58.8]}
4. e3 {[%clk 0:03:00.6]} 4... O-O {[%clk 0:02:57.6]} 5. Bd3 {[%clk 0:03:01.1]}
5... d5 {[%clk 0:02:56.8]} 6. Nf3 {[%clk 0:02:59.1]} 6... dxc4 {[%clk
0:02:55.7]} 7. Bxc4 {[%clk 0:02:59.9]} 7... c5 {[%clk 0:02:55.6]} 8. O-O {[%clk
0:02:59.2]} 8... Nc6 {[%clk 0:02:55.2]} 9. a3 {[%clk 0:02:54.4]} 9... Ba5 {[%clk
0:02:55.2]} 10. Ba2 {[%clk 0:02:51.3]} 10... h6 {[%clk 0:02:48.4]} 11. Qd3
{[%clk 0:02:43.9]} 11... Bc7 {[%clk 0:02:25.6]} 12. Rd1 {[%clk 0:02:36.4]} 12...
Qe7 {[%clk 0:02:12.8]} 13. dxc5 {[%clk 0:02:29.9]} 13... Qxc5 {[%clk 0:02:09.5]}
14. b4 {[%clk 0:02:24.7]} 14... Qh5 {[%clk 0:02:09.1]} 15. Bb2 {[%clk
0:02:09.5]} 15... Ne5 {[%clk 0:01:05.4]} 16. Nxe5 {[%clk 0:02:06.8]} 16... Bxe5
{[%clk 0:01:05.4]} 17. h3 {[%clk 0:01:59.6]} 17... Bd7 {[%clk 0:01:01.3]} 18.
Rab1 {[%clk 0:01:27.6]} 18... Bc6 {[%clk 0:00:52.1]} 19. b5 {[%clk 0:01:18.1]}
19... Be8 {[%clk 0:00:37.1]} 20. a4 {[%clk 0:01:08.8]} 20... Bd7 {[%clk
0:00:30.9]} 21. Ne2 {[%clk 0:00:56]} 21... Bxb2 {[%clk 0:00:28.4]} 22. Rxb2
{[%clk 0:00:53.7]} 22... e5 {[%clk 0:00:25.8]} 23. Ng3 {[%clk 0:00:47.8]} 23...
Qg5 {[%clk 0:00:25.2]} 24. Rbd2 {[%clk 0:00:36.3]} 24... h5 {[%clk 0:00:19.9]}
25. Kh2 {[%clk 0:00:33.8]} 25... b6 {[%clk 0:00:14.8]} 26. Ne4 {[%clk 0:00:31]}
26... Nxe4 {[%clk 0:00:14.7]} 27. Qxe4 {[%clk 0:00:31.4]} 27... Be6 {[%clk
0:00:12.2]} 28. Bxe6 {[%clk 0:00:19.2]} 28... fxe6 {[%clk 0:00:13.1]} 29. Rc1
{[%clk 0:00:17.6]} 29... Rad8 {[%clk 0:00:12.5]} 30. Rxd8 {[%clk 0:00:17.3]}
30... Rxd8 {[%clk 0:00:13.2]} 31. Rc6 {[%clk 0:00:14.8]} 31... Qf5 {[%clk
0:00:12.4]} 32. Qxf5 {[%clk 0:00:11.5]} 32... exf5 {[%clk 0:00:13.3]} 33. Rc7
{[%clk 0:00:10.8]} 33... Rd2 {[%clk 0:00:13]} 34. f3 {[%clk 0:00:08.8]} 34...
Rd3 {[%clk 0:00:11.1]} 35. Rxa7 {[%clk 0:00:08.6]} 35... Rxe3 {[%clk 0:00:11.5]}
36. Ra6 {[%clk 0:00:07.6]} 36... Ra3 {[%clk 0:00:11.1]} 37. Rxb6 {[%clk
0:00:07.1]} 37... Rxa4 {[%clk 0:00:11.5]} 38. Re6 {[%clk 0:00:07.4]} 38... e4
{[%clk 0:00:11.5]} 39. fxe4 {[%clk 0:00:06.9]} 39... fxe4 {[%clk 0:00:12.2]} 40.
b6 {[%clk 0:00:06.2]} 40... Rb4 {[%clk 0:00:12.2]} 41. Kg3 {[%clk 0:00:03.6]}
41... e3 {[%clk 0:00:12.2]} 42. Rxe3 {[%clk 0:00:02.6]} 42... Rxb6 {[%clk
0:00:12.3]} 43. Kh4 {[%clk 0:00:03.5]} 43... Rb5 {[%clk 0:00:11.9]} 44. g4
{[%clk 0:00:03.6]} 1/2-1/2